Cogmind - Beta 10.2 @@@ ROGUE MODE // 2022.02.09 @ 16:15:56 Player: Jezoensis Result: Self-destructed Performance ------------- Evolutions (2) 1000 Regions Visited (5) 1000 Robots Destroyed (41) 205 Value Destroyed (1350) 1350 Prototype IDs (24) 480 Alien Tech Used (0) 0 Bonus (300) 300 TOTAL SCORE: 4335 Bonus ------- Aligned with FarCom 300 Cogmind --------- Core Integrity 444/550 Matter 215/300 Energy 62/150 System Corruption 0% Temperature Cool (0) Movement Treading (186) Ox1 Location -8/Materials Parts ------- > --- POWER (1) -------- Light Angular Momentum Engine > --- PROPULSION (3) --- Improved Treads Armored Treads Armored Treads > --- UTILITY (4) ------ Medium Storage Unit High-capacity Storage Unit Improved Terrain Scan Processor Improved Propulsion Shielding > --- WEAPON (3) ------- Light EM Pulse Cannon Flak Gun Advanced EMP Blaster > --- INVENTORY (16) --- Light Nuclear Core Improved Treads Improved Treads Improved Heat Sink High-capacity Storage Unit High-capacity Matter Pod (200) Improved Terrain Scanner Transmission Jammer Transmission Jammer Shock Rifle Ion Cannon YOLO Cannon Flak Gun Missile Launcher Spear Peak State ------------ > --- POWER ------------ Light Angular Momentum Engine > --- PROPULSION ------- Improved Treads Armored Treads Armored Treads > --- UTILITY ---------- Improved Heat Sink Medium Storage Unit High-capacity Storage Unit Improved Terrain Scan Processor > --- WEAPON ----------- Light EM Pulse Cannon Flak Gun Advanced EMP Blaster > --- INVENTORY -------- Light Nuclear Core Improved Treads Improved Treads High-capacity Storage Unit High-capacity Matter Pod Improved Terrain Scanner Transmission Jammer Transmission Jammer Improved Propulsion Shielding Shock Rifle Ion Cannon YOLO Cannon Flak Gun Missile Launcher Spear [Rating: 36] Favorites ----------- Power Light Ion Engine Engine Light Ion Engine Power Core Light Nuclear Core Propulsion Improved Treads Treads Improved Treads Utility Improved Terrain Scanner Device Improved Terrain Scanner Storage High-capacity Storage Unit Processor Improved Terrain Scan Processor Hackware Hacking Suite Protection Improved Propulsion Shielding Weapon Assault Rifle Energy Gun EM Pulse Gun Energy Cannon Light EM Pulse Cannon Ballistic Gun Assault Rifle Launcher Advanced EMP Blaster Special Weapon Mining Laser Piercing Weapon Spear Build | -11 -10 -10 -10 -9 -8 ------- Run | Scr Mat Min Exi Min Mat Slots Evolved 4 | . . . . . 4 Power . | . . . . . . Propulsion 1 | . . . . . 1 Utility 2 | . . . . . 2 Weapon 1 | . . . . . 1 Parts Attached 67 | 7 16 . 1 . 43 Power 6 | 1 2 . . . 3 Engine 5 | 1 2 . . . 2 Core 1 | . . . . . 1 Reactor . | . . . . . . Propulsion 11 | 2 3 . . . 6 Treads 11 | 2 3 . . . 6 Leg . | . . . . . . Wheel . | . . . . . . Hover . | . . . . . . Flight . | . . . . . . Utility 22 | 2 3 . 1 . 16 Device 13 | 1 1 . . . 11 Storage 4 | 1 1 . 1 . 1 Processor 2 | . 1 . . . 1 Hackware 1 | . . . . . 1 Protection 2 | . . . . . 2 Artifact . | . . . . . . Weapon 28 | 2 8 . . . 18 Energy Gun 8 | 1 4 . . . 3 Energy Cannon 7 | . . . . . 7 Ballistic Gun 4 | 1 1 . . . 2 Ballistic Cannon . | . . . . . . Launcher 4 | . 1 . . . 3 Special Weapon 3 | . 2 . . . 1 Impact Weapon . | . . . . . . Slashing Weapon . | . . . . . . Piercing Weapon 2 | . . . . . 2 Special Melee Weapon . | . . . . . . Unidentified Prototypes 1 | . . . . . 1 Parts Lost 4 | . 2 . . . 2 Power 2 | . 1 . . . 1 Propulsion . | . . . . . . Utility . | . . . . . . Weapon 2 | . 1 . . . 1 Highest Loss Streak 2 | . 2 . . . 1 Average Slot Usage (%) 98 | . 99 100 100 100 97 Engine 10 | . 13 14 14 14 6 Core 1 | . . . . . 2 Treads 27 | . 28 28 28 28 26 Device 11 | . 11 14 14 14 10 Storage 14 | . 14 14 14 14 14 Processor 3 | . 2 . . . 6 Energy Gun 12 | . 19 14 14 14 7 Energy Cannon 6 | . . . . . 13 Ballistic Gun 7 | . 7 14 14 14 3 Special Weapon 1 | . . . . . 1 Naked Turns . | . . . . . . Heaviest Build 63 | 12 18 16 40 40 63 Greatest Support 69 | 40 46 46 46 46 69 Greatest Overweight (x) . | . . . . . . Average Overweight (x) . | . . . . . . Largest Inventory Capacity 16 | 6 8 8 12 12 16 Average Capacity 11 | 5 7 8 10 12 14 Most Carried 16 | 4 8 8 12 12 16 Average Carried 10 | 2 6 8 9 11 14 Final Capacity 16 | 6 8 8 12 12 16 Final Carried 16 | 4 8 8 12 12 16 Class Distribution -------------------- 66% | Mutant 29% | Skirmisher 4% | Assassin Dominant Class ---------------- Mutant | -10/Materials Mutant | -10/Mines Mutant | -10/Exiles Skirmisher | -9/Mines Skirmisher | -8/Materials Resources | -11 -10 -10 -10 -9 -8 ----------- Run | Scr Mat Min Exi Min Mat Matter Collected 961 | 291 182 . 66 . 422 Remotely . | . . . . . . Salvage Created 1677 | 141 618 . . . 918 Parts 93 | 9 40 . . . 44 Haulers Intercepted 3 | . 2 . . . 1 Recyclers Shooed 1 | 1 . . . . . Parts Field Recycled . | . . . . . . Retrieved Matter . | . . . . . . Parts Self-Destructed . | . . . . . . Prevented . | . . . . . . Kills | -11 -10 -10 -10 -9 -8 ------- Run | Scr Mat Min Exi Min Mat Combat Hostiles Destroyed 25 | . 10 . . . 15 Guns 11 | . 9 . . . 2 Cannons 5 | . . . . . 5 AOE 7 | . 1 . . . 6 Classes Destroyed 10 | 2 7 . . . 1 Worker 2 | . 1 . . . 1 Builder 1 | . 1 . . . . Tunneler 3 | 2 . . . . 1 Hauler 3 | . 2 . . . 1 Recycler 1 | 1 . . . . . Operator 2 | . 1 . . . 1 Watcher 4 | . 3 . . . 1 Swarmer 1 | . 1 . . . . Grunt 19 | . 9 . . . 10 Sentry 5 | . . . . . 5 Best Kill Streak 6 | 2 3 . . . 6 Combat Bots Only 5 | . 2 . . . 5 Max Kills in Single Turn 4 | 1 2 . . . 4 Gunslinging . | . . . . . . Exploded 3 | . 1 . . . 3 Melee . | . . . . . . Uniques/NPCs Destroyed . | . . . . . . Combat | -11 -10 -10 -10 -9 -8 -------- Run | Scr Mat Min Exi Min Mat Damage Taken 1572 | . 592 . . . 980 Core 300 | . 194 . . . 106 Absorbed by Shields . | . . . . . . Core Remaining (%) 61 | 100 . . . 22 . Volleys Fired 94 | 7 51 . . . 36 Largest 3 | 2 2 . . . 3 Hottest 172 | 70 100 . . . 172 Shots Fired 192 | 14 95 . . . 83 Gun 135 | 14 89 . . . 32 Cannon 45 | . . . . . 45 Launcher 7 | . 2 . . . 5 Special 5 | . 4 . . . 1 Kinetic 31 | 7 10 . . . 14 Thermal 62 | 7 45 . . . 10 Explosive 4 | . 2 . . . 2 Electromagnetic 95 | . 38 . . . 57 Robot Hit Streak 16 | 7 16 . . . 15 Robot Miss Streak 5 | 1 3 . . . 5 Penetration Max . | . . . . . . Secondary Targets . | . . . . . . Shots Hit Robots 133 | 10 57 . . . 66 Core Hits 70 | 4 32 . . . 34 Critical Hits . | . . . . . . Critical Kills . | . . . . . . Critical Parts Destroyed . | . . . . . . Melee Attacks 2 | . . . . . 2 Impact . | . . . . . . Slashing . | . . . . . . Piercing 2 | . . . . . 2 Sneak Attacks . | . . . . . . Combat Hostiles . | . . . . . . Follow-up Attacks . | . . . . . . Damage Inflicted 3700 | 127 1187 . . . 2386 Guns 1329 | 127 776 . . . 426 Cannons 846 | . . . . . 846 Explosions 1522 | . 408 . . . 1114 Melee . | . . . . . . Ramming 3 | . 3 . . . . Kinetic 281 | 88 46 . . . 147 Thermal 922 | 39 637 . . . 246 Explosive 877 | . 208 . . . 669 Electromagnetic 1617 | . 293 . . . 1324 Impact . | . . . . . . Slashing . | . . . . . . Piercing . | . . . . . . Highest Corruption . | . . . . . . Average Corruption . | . . . . . . Corruption Purged . | . . . . . . Overload Shots . | . . . . . . Overflow Damage 178 | . 6 . . . 172 Projectiles 74 | . . . . . 74 Explosions 104 | . 6 . . . 98 Melee . | . . . . . . Knockbacks . | . . . . . . Impact . | . . . . . . Kinetic . | . . . . . . Secondary . | . . . . . . Self-Inflicted Damage 262 | . 28 . . . 234 Shots 7 | . 1 . . . 6 Rammed 1 | . 1 . . . . Targets Rammed 1 | . 1 . . . . Kicked . | . . . . . . Crushed . | . . . . . . Highest Temperature 267 | . 267 . . . 168 Average Temperature 68 | . 73 . . . 60 Received Heat Transfer 672 | . 312 . . . 360 Effects 1 | . 1 . . . . Interference 1 | . 1 . . . . Siege Activations . | . . . . . . Robots Corrupted 4 | . . . . . 4 Combat Hostiles 2 | . . . . . 2 Parts Fried 12 | . . . . . 12 Impact Corruptions . | . . . . . . Robots Melted . | . . . . . . Combat Hostiles . | . . . . . . Parts Melted 4 | 1 3 . . . . Heat Transferred 1902 | 111 1445 . . . 346 Parts Sabotaged . | . . . . . . Parts Stolen . | . . . . . . Parts Stripped . | . . . . . . Power Chain Reactions 4 | . 1 . . . 3 Missiles Intercepted . | . . . . . . Alert | -11 -10 -10 -10 -9 -8 ------- Run | Scr Mat Min Exi Min Mat Peak Influence 474 | 15 293 55 . . 474 Initial 55 | . 9 55 . . . Average 86 | 6 136 55 . . 63 Maximum Alert Level 2 | . 1 . . . 2 Low Security (%) 86 | 100 64 100 . 100 98 Level 1 13 | . 35 . . . . Level 2 . | . . . . . . Level 3 . | . . . . . . Level 4 . | . . . . . . Level 5 . | . . . . . . High Security . | . . . . . . Max Security . | . . . . . . Squads Dispatched 9 | . 3 . . . 6 Investigation 3 | . 1 . . . 2 Extermination . | . . . . . . Reinforcement 4 | . 2 . . . 2 Assault 1 | . . . . . 1 Garrison 1 | . . . . . 1 Intercept . | . . . . . . Construction Impeded . | . . . . . . Haulers Reinforced . | . . . . . . Stealth | -11 -10 -10 -10 -9 -8 --------- Run | Scr Mat Min Exi Min Mat Distress Signals 1 | . . . . . 1 Communications Jammed . | . . . . . . Distress Signals . | . . . . . . Times Spotted 47 | . 20 . . . 27 Peak Tracking Total 8 | . 4 . . . 8 Tactical Retreats 6 | . 4 . . . 2 Traps | -11 -10 -10 -10 -9 -8 ------- Run | Scr Mat Min Exi Min Mat Traps Triggered 3 | . 1 . . . 2 Indirectly 2 | . . . . . 2 Trap Hack Attempts . | . . . . . . Triggered . | . . . . . . Disarmed . | . . . . . . Reprogrammed . | . . . . . . Reused . | . . . . . . Traps Extracted . | . . . . . . Installed . | . . . . . . Triggered . | . . . . . . Machines | -11 -10 -10 -10 -9 -8 ---------- Run | Scr Mat Min Exi Min Mat Machines Disabled 8 | . 4 . . . 4 Max in Single Turn 3 | . 3 . . . 2 Garrison Access 1 | . . . . . 1 Machines Sabotaged . | . . . . . . Garrisons Compromised . | . . . . . . Overloaded Fab Kills . | . . . . . . Fab Network Shutdowns . | . . . . . . Hacking | -11 -10 -10 -10 -9 -8 --------- Run | Scr Mat Min Exi Min Mat Machines Accessed 11 | . 3 . 1 . 7 Terminals 8 | . 3 . . . 5 Fabricators . | . . . . . . Repair Stations . | . . . . . . Recycling Units 1 | . . . . . 1 Scanalyzers 1 | . . . . . 1 Garrison Access . | . . . . . . Total Hacks 32 | . 10 . 1 . 21 Successful 18 | . 5 . 1 . 12 Failed 14 | . 5 . . . 9 Catastrophic 1 | . . . . . 1 Database Lockouts . | . . . . . . Manual 24 | . 10 . 2 . 12 Terminals 26 | . 10 . . . 16 Fabricators . | . . . . . . Repair Stations . | . . . . . . Recycling Units 1 | . . . . . 1 Scanalyzers 4 | . . . . . 4 Garrison Access . | . . . . . . Terminal Hacks 4 | . . . 1 . 3 Unreport Threat 1 | . . . . . 1 Locate Traps 1 | . . . . . 1 Zone Layout 1 | . . . . . 1 EX-Prototype ID Bank 1 | . . . 1 . . Fabricator Hacks . | . . . . . . Repair Station Hacks . | . . . . . . Recycling Unit Hacks . | . . . . . . Scanalyzer 4 | . . . . . 4 Insert Component 2 | . . . . . 2 Analyze 2 | . . . . . 2 Garrison Access Hacks . | . . . . . . Unauthorized Hacks 10 | . 5 . . . 5 Terminals 9 | . 5 . . . 4 Track 4 | . 3 . . . 1 Botnet 4 | . 2 . . . 2 Operators 1 | . . . . . 1 Fabricators . | . . . . . . Repair Stations . | . . . . . . Recycling Units 1 | . . . . . 1 Recyclers 1 | . . . . . 1 Scanalyzers . | . . . . . . Garrison Access . | . . . . . . Data Cores Recovered . | . . . . . . Used . | . . . . . . Hacking Detections 8 | . 3 . . . 5 Full Trace Events . | . . . . . . Feedback Events . | . . . . . . Feedback Blocked . | . . . . . . Robot Schematics Acquired . | . . . . . . Robots Built . | . . . . . . Matter . | . . . . . . Time . | . . . . . . Total Robot Build Rating . | . . . . . . Part Schematics Acquired 2 | . . . . . 2 Parts Built . | . . . . . . Matter . | . . . . . . Time . | . . . . . . Total Part Build Rating . | . . . . . . Parts Repaired . | . . . . . . Time . | . . . . . . Parts Recycled . | . . . . . . Recycled Matter . | . . . . . . Retrieved Matter . | . . . . . . Retrieved Components . | . . . . . . Parts Scanalyzed 2 | . . . . . 2 Part Schematics Acquired 2 | . . . . . 2 Parts Damaged . | . . . . . . Bothacking | -11 -10 -10 -10 -9 -8 ------------ Run | Scr Mat Min Exi Min Mat Used RIF Installer . | . . . . . . Robots Hacked . | . . . . . . Non-combat . | . . . . . . Combat . | . . . . . . Robot Hacks Applied . | . . . . . . Relay Couplers Released 2 | . . . . . 2 Machine Destruction 2 | . . . . . 2 Robots Rewired . | . . . . . . Allies Hacked . | . . . . . . Hacks Repelled . | . . . . . . Allies | -11 -10 -10 -10 -9 -8 -------- Run | Scr Mat Min Exi Min Mat Total Allies . | . . . . . . Largest Group . | . . . . . . Highest-Rated Group . | . . . . . . Highest-Rated Ally . | . . . . . . Total Orders . | . . . . . . Ally Attacks . | . . . . . . Total Damage . | . . . . . . Kills . | . . . . . . Allies Corrupted . | . . . . . . Allies Melted . | . . . . . . Intel | -11 -10 -10 -10 -9 -8 ------- Run | Scr Mat Min Exi Min Mat Robot Analysis Total . | . . . . . . Derelict Logs Recovered . | . . . . . . Drone Launches . | . . . . . . Drone Recoveries . | . . . . . . Exploration | -11 -10 -10 -10 -9 -8 ------------- Run | Scr Mat Min Exi Min Mat Turns Passed 2625 | 87 800 74 432 50 1182 Spaces Moved 1350 | 43 379 47 267 31 583 Core 16 | 16 . . . . . Treads 1334 | 27 379 47 267 31 583 Legs . | . . . . . . Wheels . | . . . . . . Hover . | . . . . . . Flight . | . . . . . . Fastest Speed 50 | 50 160 160 160 160 160 Average Speed 159 | 119 160 160 160 160 162 Slowest Speed 166 | 160 160 160 160 160 166 Overloaded Moves . | . . . . . . Propulsion Burnouts . | . . . . . . Robots Hopped . | . . . . . . Cave-ins Triggered . | . . . . . . Exploration Rate (%) 37 | 4 71 25 65 11 48 Regions Visited 5 Branch Regions 3 Pre-discovered Areas . | . . . . . . Known Exits Taken . | . . . . . . Unknown Exits Taken 5 | 1 1 1 1 1 . Scrap Searched 1 | . . . . 1 . Spaces Dug 6 | . 4 . . . 2 Terrain Destroyed 68 | . 24 . . . 44 Melee 1 | . . . . . 1 Projectile 5 | . 4 . . . 1 AOE 62 | . 20 . . . 42 Terrain Rammed . | . . . . . . Walls Destroyed . | . . . . . . Machines Disabled . | . . . . . . Actions | -11 -10 -10 -10 -9 -8 --------- Run | Scr Mat Min Exi Min Mat Total 1618 | 62 470 46 273 32 735 Wait 36 | . 5 . . . 31 Move 1345 | 42 378 46 266 30 583 Hop . | . . . . . . Pick Up 40 | 6 11 . 4 1 18 Fast Attach 15 | 5 1 . . . 9 Attach 9 | 2 1 . . . 6 Detach 2 | . . . . . 2 Swap 43 | . 14 . 1 . 28 Drop 31 | . 8 . 2 1 20 Fire 94 | 7 51 . . . 36 Melee 2 | . . . . . 2 Ram . | . . . . . . Kick . | . . . . . . Crush 1 | . 1 . . . . Escape Stasis . | . . . . . . Rewire . | . . . . . . Trap . | . . . . . . Miscellaneous . | . . . . . . Route ------- -11/Scrapyard -10/Materials (discovered 4 exits: [*Mat x3] / [*Min]) -10/Mines -10/Exiles -9/Mines -8/Materials (discovered 2 exits: [*Fac x2]) History --------- Turn | Location | Event 7 | -11/Scrapyard | Discovered new exit (range 14) 88 | -11/Scrapyard | Entered Materials 323 | -10/Materials | Discovered new exit (range 16) 327 | -10/Materials | Build established: Mutant 473 | -10/Materials | Discovered new exit (range 5) 554 | -10/Materials | Core integrity fell below 50% 598 | -10/Materials | Discovered new exit (range 9) 865 | -10/Materials | Discovered new exit (range 9) 888 | -10/Materials | Entered Mines 954 | -10/Mines | Deemed a non-threat by the Exiles lab entrance 956 | -10/Mines | Discovered new exit (range 5) 962 | -10/Mines | Entered Exiles 1006 | -10/Exiles | Met 8R-AWN 1030 | -10/Exiles | Met EX-HEX 1150 | -10/Exiles | Met EX-BIN 1168 | -10/Exiles | Aligned with FarCom system 1170 | -10/Exiles | Given EX-Vault access code 1206 | -10/Exiles | Opened EX-Vault 1214 | -10/Exiles | Found YOLO Cannon 1247 | -10/Exiles | Warned to stay clear of 0b10 Research branches 1297 | -10/Exiles | Met EX-DEC 1381 | -10/Exiles | Discovered new exit (range 10) 1394 | -10/Exiles | Left Exiles lab with YOLO Cannon 1394 | -10/Exiles | Entered Mines 1412 | -9/Mines | Discovered new exit (range 12) 1444 | -9/Mines | Entered Materials 1444 | -8/Materials | Evolved 4 slots: Propulsion x1, Utility x2, Weapon x1 1807 | -8/Materials | Discovered new exit (range 5) 2436 | -8/Materials | Discovered new exit (range 10) 2616 | -8/Materials | Garrison activated, responded to threat 2626 | -8/Materials | Self-destructed Last Messages --------------- 02621_ K-01 Serf destroyed. 02621_ Alarm Trap short circuited. 02621_ Imp. Heat Sink fried. 02621_ Lgt. Nuclear Core fried. 02621_ G-47 Trooper destroyed. 02621_ Destroyed Tractor Beam. 02621_ G-47 Trooper destroyed. 02621_ Chain reaction triggered in Lgt. Nuclear Core. 02621_ Electrolysis Chamber disabled. 02621_ G-47 Trooper destroyed. 02621_ An alarm sounds. 02621_ ALERT: Alarm triggered, dispatching investigation squad. 02621_ An alarm sounds. 02621_ ALERT: Alarm triggered, dispatching investigation squad. 02621_ W-25 Informer sends out distress signal. 02622_ The unstable cave ceiling collapses. 02624_ Destroyed Imp. Hover Unit. 02624_ Door malfunctions. 02624_ ALERT: Garrison Access compromised, dispatching assault squad. 02625_ Penetrated by Slug. Map ----- +----------------------------------------------------+ | ?#?##? #?# ####### """ #### #####?### | | ?? ?# ? ?### ##?#### """ #### ######### | | ?? ?#?? ? #?# ###### / """ #??# #? | | ? ##? ? ?### ####### #### # | | ?? #? ?## ##########+####### # | | ????#? ? ## % # | | ? ??? ## % + | | ?#?#?????#?#### % # | | ?? ? #?###### ###+############## # | | ############## ! ]######## # | | + # % !# ######### | | ???######### ######## """ """ # # ####### | | ????######## ######?# """ """ # # | | ????# [ ## ###?##?# """ """ # """" + | | "?" # # ####### # """" # | | ????# "T" + % + / /# """" # ####### | | ????# # ####### # # ######## | | ? ? ########+######################### # # | | ????##?? ? ?###?#### ####### # # | | #????#?? ####?#### # + | | ?#?#???# ##?###### + # | | ?##??#?# #######?# # # | | ??#????###########?#?##### ######### ######## | | ???#???????""? ?#### # ######?#?##+######## | | ?????????? "?"?? #?# ####?#### """"" # | | ???????#?? ???? ? #?# @ r ##??#?### ""T"" # | | ???#??????????? ### ! #?#??### + | | ????#?#??? ????? ?# % %*% ###?#?### ! # | | ?#??????#? ????? ?##" % =% ################## | | ?????????????""?? ##" = + | | ???????????????? ?## % u T # ############ | | ???????????????? ?+ ! # ######### | | ??????????????????# r # ### #""" | | ????????????o????? # #w### #""" | | ????????????????? b # """ + + #""" | | ?????????????o?? g l/ """ # # #""" | | ???????????????## aw # """ # #g #""" | | ????????????????# g # # # """ #""" | | ?????????????????? ! # + g """ #""" | | ????????????????????? k "h # Y # # """ # | | ???????????????????????u"G? # # # """ #### | | ????????????????????????????????????????????"????? | | ?????????????????????????????????????????????????? | | ?????????????????????????????????????????????????? | | ?????????????????????????????????????????????????? | | ?????????????????????????????????????????????????? | | ?????????????????????????????????????????????????? | | ?????????????????????????????????????????????????? | | ?????????????????????????????????????????????????? | | ?????????????????????????????????????????????????? | +----------------------------------------------------+ Best States ------------- Heat Dissipation 45 Energy Generation 18 Energy Capacity 250 Matter Stores 300 Matter Capacity 300 Sight Range 16 Terrain Scan Range 16 Terrain Scan Density 110 Propulsion Shielding 66 Evasion (%) 50 Targeting Accuracy 6 Recoil Reduction 3 Offensive Hacking 10 Item Schematics ----------------- Transmission Jammer | -8/Materials | Scanalyzed Hcp. Storage Unit | -8/Materials | Scanalyzed Robot Schematics ------------------ None Fabricated ------------ Nothing Alien Tech Used ----------------- None Achievements -------------- None Challenges ------------ None Game ------ Seed ControlArmoredWell Manual? 0 Play Time 00:30:51 Cumulative 514.3 hours Start 2022.02.09 @ 15:45:06 End 2022.02.09 @ 16:15:56 Sessions 1 Manual Loads 0 Difficulty Rogue Special Mode None Game No. 249 Rogue 122 Adventurer 125 Explorer 2 Win Type - Total 44 Types 37/3/2/0/1/0/0/0/1 Lore% 67 Gallery% 86 Achievement% 66 Wizard Run 0 Options --------- ASCII 0 Keyboard 1 Movement Numpad Keybinds 0 Fullscreen 1 Font 36/TerminusFine Map View 76x50 Tactical HUD 1 Map Filters NONE Filters NONE Steam 1 RUN: e2e66aaa-6fb6-4afc-8bbc-d0a4a0dfd48a